[Event "44th Chess Olympiad Women 2022"]
[Site "Chennai"]
[Date "2022.07.30"]
[Round "2.52"]
[White "Arai, Yuki"]
[Black "Nan M K Khine Hlyan"]
[Result "0-1"]
[ECO "C42"]
[WhiteElo "1495"]
[BlackElo "1979"]
[Annotator "TA"]
[PlyCount "52"]
[EventDate "2022.07.29"]
[EventType "team-tourn"]
[EventCountry "IND"]
[SourceTitle "playchess.com"]
[Source "ChessBase"]
[SourceQuality "1"]
[WhiteTeam "Japan"]
[BlackTeam "Myanmar"]
[WhiteTeamCountry "JPN"]
[BlackTeamCountry "MYA"]
[TimeControl "40/5400+30:1800+30"]

{[%evp 11,52,27,30,-5,56,57,71,58,59,77,94,30,75,-47,-45,-54,-45,-64,-8,-22,-2,0,0,-73,-71,-105,-132,-196,-198,-637,-624,-631,-623,-3491,-3432,-2757,-1829,-1785,-1738,-29985,-29985,-29991,-29991]} 1. e4 {[%emt 0:00:04]} e5 {[%emt 0:01:15]} 2. Nf3 {[%emt 0:00:08]} Nf6 {[%emt 0:02:11]} 3. Nxe5 {[%emt 0:00:50]} d6 {[%emt 0:00:19]} 4. Nf3 {[%emt 0:00:24]} Nxe4 {[%emt 0:00:17]} 5. d4 {[%emt 0:01:35]} d5 {[%emt 0:00:58]} 6. Bd3 {[%emt 0:03:23]} Bd6 {[%emt 0:00:22] 6...Bf5 is the modern continuation.} 7. h3 {[%emt 0:04:19] [#] C42: Petroff Defence: 3 Nxe5 and unusual White 3rd moves.} Qe7 $146 {[%emt 0:04:13]} ({Better is} 7... Nc6 $11) ({Predecessor:} 7... O-O 8. O-O c6 9. c4 Nd7 10. Nc3 Nxc3 11. bxc3 dxc4 12. Bxc4 h6 13. Bd3 Nf6 14. Re1 c5 15. Be3 cxd4 16. cxd4 Be6 17. Ne5 Bd5 18. Qd2 Re8 19. Bf4 a6 20. Rac1 {1-0 (33) Almeida Junior,A (2106)-Myradow,S (2233) Chess.com INT 2021}) 8. O-O $14 {[%emt 0:01:26]} O-O {[%emt 0:00:15]} 9. Re1 {[%emt 0:04:02] White is better.} f5 {[%emt 0:00:39]} 10. c4 {[%emt 0:05:19] Black must now prevent c5.} c6 {[%emt 0:03:23]} 11. cxd5 {[%emt 0:12:06]} ({White should try} 11. Qb3 $16) 11... cxd5 $11 {[%emt 0:02:27]} 12. Qc2 {[%emt 0:02:05]} (12. Nc3 $16) 12... Nc6 $15 {[%emt 0:01:10]} 13. a3 {[%emt 0:00:38]} Qf6 {[%emt 0:00:28]} 14. Qa4 {[%emt 0:05:50]} g5 {[%emt 0:04:50] Black is more active.} ({Black should play} 14... Be6 $15) 15. Nc3 $11 {[%emt 0:27:24]} Nxc3 {[%emt 0:04:07]} (15... g4 $5 {[%cal Rg4f3]} 16. Nxd5 (16. Bxe4 $2 fxe4 17. Nxd5 Qf7 $19) 16... Qg7 17. hxg4 fxg4 $11) 16. bxc3 {[%emt 0:00:24]} g4 {[%emt 0:00:40]} 17. Nh2 {[%emt 0:04:41]} (17. Bg5 $11 Qf7 18. Ne5) 17... gxh3 $17 {[%emt 0:09:17] [#] And now ...Bxh2+ would win.} 18. g3 {[%emt 0:04:16]} f4 {[%emt 0:03:22]} 19. g4 {[%emt 0:02:24]} (19. Kh1 $17) 19... h5 $40 {[%emt 0:02:48][%mdl 128] Black attacks with force.} 20. f3 {[%emt 0:03:13]} (20. Qb5 Qg5 21. Bc4) 20... Qh4 {[%emt 0:01:56] ( -> ...Qg3+)} 21. Re2 {[%emt 0:03:03]} hxg4 {[%emt 0:02:38]} 22. Nxg4 {[%emt 0:03:41]} Qg3+ {[%emt 0:00:46]} 23. Kf1 {[%emt 0:00:55]} Qxf3+ {[%emt 0:01:38]} 24. Nf2 {[%emt 0:05:17]} h2 {[%emt 0:03:11][%csl Gf3][%cal Rh2h1] [#]} 25. Bh7+ {[%emt 0:00:50]} Kxh7 {[%emt 0:00:57][%csl Gf3][%cal Rh2h1]} 26. Qc2+ {[%emt 0:00:47]} Bf5 {[%emt 0:00:16] Weighted Error Value: White=1.08/Black=0.31} 0-1

[Event "44th Chess Olympiad Women 2022"]
[Site "Chennai"]
[Date "2022.07.30"]
[Round "2.53"]
[White "Nakabo, Peninah"]
[Black "Nosimilo, Mkhonto"]
[Result "1-0"]
[ECO "C55"]
[WhiteElo "1747"]
[BlackElo "1313"]
[Annotator "NA COMBH"]
[PlyCount "117"]
[EventDate "2022.07.29"]
[EventType "team-tourn"]
[EventCountry "IND"]
[SourceTitle "playchess.com"]
[Source "ChessBase"]
[SourceQuality "1"]
[WhiteTeam "Uganda"]
[BlackTeam "SWZ"]
[WhiteTeamCountry "UGA"]
[TimeControl "40/5400+30:1800+30"]

1. e4 {[%emt 0:00:04]} e5 {[%emt 0:00:08]} 2. Nf3 {[%emt 0:00:13]} d6 {[%emt 0:00:48]} 3. Bc4 {[%emt 0:00:32]} Nc6 {[%emt 0:00:13]} 4. h3 {[%emt 0:00:22]} Be7 {[%emt 0:00:52]} 5. O-O {[%emt 0:01:14]} Nf6 {[%emt 0:00:07]} 6. Re1 {[%emt 0:00:29]} O-O {[%emt 0:00:34]} 7. Nc3 {[%emt 0:01:36]} a6 {[%emt 0:02:59]} 8. Nd5 {[%emt 0:00:17]} Nxd5 {[%emt 0:04:03]} 9. Bxd5 {[%emt 0:00:16]} Re8 {[%emt 0:03:18]} 10. c3 {[%emt 0:00:21]} Bf8 {[%emt 0:03:20]} 11. d3 {[%emt 0:01:30]} Be6 {[%emt 0:06:50]} 12. Ng5 {[%emt 0:09:29]} Bxd5 {[%emt 0:10:44]} 13. exd5 {[%emt 0:00:11]} h6 {[%emt 0:09:30]} 14. Nxf7 {[%emt 0:06:33]} Kxf7 {[%emt 0:05:52]} 15. dxc6 {[%emt 0:00:10]} b6 {[%emt 0:05:32]} 16. Qf3+ {[%emt 0:03:41]} Qf6 {[%emt 0:01:47]} 17. Qe4 {[%emt 0:06:04]} Kg8 {[%emt 0:08:43]} 18. Re3 {[%emt 0:00:42]} Qf4 {[%emt 0:07:03]} 19. Qxf4 {[%emt 0:00:14]} exf4 {[%emt 0:00:27]} 20. Rxe8 {[%emt 0:00:07]} Rxe8 {[%emt 0:00:30]} 21. Bxf4 {[%emt 0:00:10]} Re2 {[%emt 0:02:39]} 22. Rb1 {[%emt 0:00:23]} Be7 {[%emt 0:01:42]} 23. Be3 {[%emt 0:00:13]} Bg5 {[%emt 0:02:35]} 24. Bxg5 {[%emt 0:00:29]} hxg5 {[%emt 0:00:05]} 25. d4 {[%emt 0:00:33]} d5 {[%emt 0:00:26]} 26. Kf1 {[%emt 0:00:25]} Re6 {[%emt 0:00:14]} 27. Re1 {[%emt 0:00:09]} Rxc6 {[%emt 0:00:35]} 28. Re5 {[%emt 0:00:11]} Rd6 {[%emt 0:02:20]} 29. Rxg5 {[%emt 0:00:10]} c5 {[%emt 0:02:14]} 30. dxc5 {[%emt 0:00:18]} bxc5 {[%emt 0:00:10]} 31. Ke2 {[%emt 0:00:25]} c4 {[%emt 0:01:51]} 32. b4 {[%emt 0:03:42]} d4 {[%emt 0:09:12]} 33. cxd4 {[%emt 0:00:14]} Rxd4 {[%emt 0:00:05]} 34. Rc5 {[%emt 0:00:40]} Kf7 {[%emt 0:02:48]} 35. Rc6 {[%emt 0:00:18]} c3 {[%emt 0:06:29]} 36. a3 {[%emt 0:01:08]} Rd2+ {[%emt 0:00:41]} 37. Ke3 {[%emt 0:01:42]} Rc2 {[%emt 0:00:56]} 38. Rxa6 {[%emt 0:00:19]} Ra2 {[%emt 0:00:15]} 39. b5 {[%emt 0:01:47]} Rb2 {[%emt 0:00:51]} 40. a4 {[%emt 0:00:36]} Rb4 {[%emt 0:00:29]} 41. Kd3 {[%emt 0:30:42]} Rc4 {[%emt 0:02:09]} 42. Kc2 {[%emt 0:00:00]} Ke7 {[%emt 0:03:54]} 43. a5 {[%emt 0:00:00]} Rc5 {[%emt 0:03:26]} 44. Rb6 {[%emt 0:00:00]} Kd8 {[%emt 0:05:57]} 45. a6 {[%emt 0:00:00]} Rc8 {[%emt 0:01:14]} 46. Rd6+ {[%emt 0:00:00]} Ke7 {[%emt 0:01:52]} 47. Rd4 {[%emt 0:00:00]} Rc5 {[%emt 0:01:15]} 48. Rb4 {[%emt 0:00:00]} Rf5 {[%emt 0:04:03]} 49. a7 {[%emt 0:00:00]} Rxf2+ {[%emt 0:01:01]} 50. Kxc3 {[%emt 0:00:00]} Rf8 {[%emt 0:00:12]} 51. b6 {[%emt 0:00:00]} Rc8+ {[%emt 0:02:59]} 52. Rc4 {[%emt 0:00:00]} Ra8 {[%emt 0:01:15]} 53. b7 {[%emt 0:00:00]} Rxa7 {[%emt 0:00:05]} 54. b8=Q {[%emt 0:00:00]} Ra3+ {[%emt 0:00:11]} 55. Kd4 {[%emt 0:00:00]} Ra2 {[%emt 0:00:39]} 56. Qe5+ {[%emt 0:00:00]} Kf7 {[%emt 0:00:13]} 57. Rc7+ {[%emt 0:00:00]} Kf8 {[%emt 0:00:38]} 58. Qxg7+ {[%emt 0:00:00]} Ke8 {[%emt 0:00:05]} 59. Qe7# {[%emt 0:00:00]} 1-0

[Event "44th Chess Olympiad Women 2022"]
[Site "Chennai"]
[Date "2022.07.30"]
[Round "2.53"]
[White "Nomcebo, Sibisi"]
[Black "Nansubuga, Gloria"]
[Result "0-1"]
[ECO "A43"]
[WhiteElo "1225"]
[BlackElo "1538"]
[Annotator "NA RC COMBH"]
[PlyCount "112"]
[EventDate "2022.07.29"]
[EventType "team-tourn"]
[EventCountry "IND"]
[SourceTitle "playchess.com"]
[Source "ChessBase"]
[SourceQuality "1"]
[WhiteTeam "SWZ"]
[BlackTeam "Uganda"]
[BlackTeamCountry "UGA"]
[TimeControl "40/5400+30:1800+30"]

1. d4 {[%emt 0:00:09]} c5 {[%emt 0:00:18]} 2. d5 {[%emt 0:00:45]} d6 {[%emt 0:00:42]} 3. c4 {[%emt 0:00:59]} e6 {[%emt 0:00:28]} 4. Nc3 {[%emt 0:00:28]} Nf6 {[%emt 0:00:16]} 5. g3 {[%emt 0:00:30]} Be7 {[%emt 0:01:57]} 6. Bg2 {[%emt 0:00:18]} O-O {[%emt 0:00:07]} 7. e4 {[%emt 0:01:12]} exd5 {[%emt 0:00:53]} 8. cxd5 {[%emt 0:00:38]} h6 {[%emt 0:06:10]} 9. Nge2 {[%emt 0:01:08]} Bg4 {[%emt 0:00:19]} 10. f3 {[%emt 0:00:21]} Bh5 {[%emt 0:00:15]} 11. Nf4 {[%emt 0:00:15]} Nbd7 {[%emt 0:00:44]} 12. O-O {[%emt 0:01:27]} Bg6 {[%emt 0:02:20]} 13. Nxg6 {[%emt 0:00:29]} fxg6 {[%emt 0:00:09]} 14. b3 {[%emt 0:03:51]} Ne8 {[%emt 0:03:57]} 15. Ne2 {[%emt 0:03:09]} Bf6 {[%emt 0:01:05]} 16. Rb1 {[%emt 0:00:17]} Nc7 {[%emt 0:01:47]} 17. Nf4 {[%emt 0:04:28]} Bd4+ {[%emt 0:03:01]} 18. Kh1 {[%emt 0:03:16]} g5 {[%emt 0:00:57]} 19. Ne2 {[%emt 0:01:57]} Be5 {[%emt 0:00:58]} 20. Bb2 {[%emt 0:01:44]} Rf7 {[%emt 0:01:58]} 21. Bxe5 {[%emt 0:01:30]} Nxe5 {[%emt 0:00:04]} 22. Nc3 {[%emt 0:00:29]} Qf6 {[%emt 0:02:21]} 23. Rb2 {[%emt 0:03:42]} Raf8 {[%emt 0:01:38]} 24. Rbf2 {[%emt 0:00:39]} Ng4 {[%emt 0:04:31]} 25. fxg4 {[%emt 0:02:16]} Qxc3 {[%emt 0:00:03]} 26. Rxf7 {[%emt 0:03:47]} Rxf7 {[%emt 0:00:00]} 27. Rxf7 {[%emt 0:00:21]} Kxf7 {[%emt 0:00:02]} 28. Qf3+ {[%emt 0:04:51]} Qxf3 {[%emt 0:00:20]} 29. Bxf3 {[%emt 0:00:15]} b5 {[%emt 0:00:35]} 30. Kg2 {[%emt 0:00:56]} Kf6 {[%emt 0:00:30]} 31. Kf2 {[%emt 0:00:30]} Ke5 {[%emt 0:00:30]} 32. Ke3 {[%emt 0:00:30]} a5 {[%emt 0:00:30]} 33. Bd1 {[%emt 0:00:30]} Na6 {[%emt 0:00:30]} 34. a3 {[%emt 0:00:30]} c4 {[%emt 0:08:12]} 35. bxc4 {[%emt 0:10:26]} bxc4 {[%emt 0:00:06]} 36. Bc2 {[%emt 0:01:47]} Nc5 {[%emt 0:00:06]} 37. Bb1 {[%emt 0:02:01]} c3 {[%emt 0:07:31]} 38. Bc2 {[%emt 0:00:51]} g6 {[%emt 0:04:18]} 39. Bb1 {[%emt 0:02:17]} Nb3 {[%emt 0:00:37]} 40. Bc2 {[%emt 0:01:24]} Nd4 {[%emt 0:00:11]} 41. Kd3 {[%emt 0:32:14]} Nxc2 {[%emt 0:30:45]} 42. Kxc2 {[%emt 0:00:19]} Kxe4 {[%emt 0:00:07]} 43. Kxc3 {[%emt 0:00:35]} Kxd5 {[%emt 0:00:08]} 44. a4 {[%emt 0:03:35]} Ke4 {[%emt 0:03:29]} 45. Kc4 {[%emt 0:00:27]} d5+ {[%emt 0:00:08]} 46. Kb5 {[%emt 0:00:15]} d4 {[%emt 0:00:22]} 47. Kxa5 {[%emt 0:00:26]} d3 {[%emt 0:00:07]} 48. Kb6 {[%emt 0:00:14]} d2 {[%emt 0:00:06]} 49. a5 {[%emt 0:00:22]} d1=Q {[%emt 0:00:15]} 50. a6 {[%emt 0:00:12]} Qd6+ {[%emt 0:01:23]} 51. Kb7 {[%emt 0:00:51]} Qd7+ {[%emt 0:01:01]} 52. Kb8 {[%emt 0:01:13]} Qb5+ {[%emt 0:00:54]} 53. Ka7 {[%emt 0:00:21]} Kd5 {[%emt 0:00:23]} 54. h4 {[%emt 0:00:32]} Kc6 {[%emt 0:00:16]} 55. hxg5 {[%emt 0:00:29]} Kc7 {[%emt 0:00:22]} 56. gxh6 {[%emt 0:00:50]} Qb8# {[%emt 0:00:58]} 0-1

[Event "44th Chess Olympiad Women 2022"]
[Site "Chennai"]
[Date "2022.07.30"]
[Round "2.53"]
[White "Dlamini, Nosipho"]
[Black "Takali Milly"]
[Result "0-1"]
[ECO "B11"]
[WhiteElo "1081"]
[BlackElo "1482"]
[Annotator "NA RC COMBH"]
[PlyCount "164"]
[EventDate "2022.07.29"]
[EventType "team-tourn"]
[EventCountry "IND"]
[SourceTitle "playchess.com"]
[Source "ChessBase"]
[SourceQuality "1"]
[WhiteTeam "SWZ"]
[BlackTeam "Uganda"]
[BlackTeamCountry "UGA"]
[TimeControl "40/5400+30:1800+30"]

1. e4 {[%emt 0:00:05]} c6 {[%emt 0:00:16]} 2. Nf3 {[%emt 0:00:11]} d5 {[%emt 0:00:05]} 3. Nc3 {[%emt 0:02:55]} d4 {[%emt 0:02:31]} 4. Nb1 {[%emt 0:01:58]} Nf6 {[%emt 0:00:17]} 5. d3 {[%emt 0:00:31]} Bg4 {[%emt 0:00:30]} 6. Nbd2 {[%emt 0:00:37]} e6 {[%emt 0:03:20]} 7. Be2 {[%emt 0:00:11]} Bc5 {[%emt 0:02:30]} 8. O-O {[%emt 0:02:30]} O-O {[%emt 0:00:13]} 9. c3 {[%emt 0:00:26]} Bxf3 {[%emt 0:03:06]} 10. Nxf3 {[%emt 0:01:03]} dxc3 {[%emt 0:01:46]} 11. bxc3 {[%emt 0:00:32]} Qc7 {[%emt 0:00:25]} 12. h3 {[%emt 0:03:50]} Nbd7 {[%emt 0:00:50]} 13. Qa4 {[%emt 0:04:09]} b5 {[%emt 0:00:58]} 14. Qc2 {[%emt 0:01:06]} a5 {[%emt 0:00:30]} 15. d4 {[%emt 0:01:55]} Ba7 {[%emt 0:01:01]} 16. e5 {[%emt 0:01:42]} Nd5 {[%emt 0:00:23]} 17. Ng5 {[%emt 0:03:40]} g6 {[%emt 0:00:34]} 18. Bh5 {[%emt 0:04:10]} h6 {[%emt 0:02:12]} 19. Nxe6 {[%emt 0:05:29]} fxe6 {[%emt 0:06:08]} 20. Qxg6+ {[%emt 0:00:40]} Kh8 {[%emt 0:00:42]} 21. Qxh6+ {[%emt 0:01:20]} Kg8 {[%emt 0:00:47]} 22. Qxe6+ {[%emt 0:00:45]} Kh8 {[%emt 0:00:28]} 23. Qh6+ {[%emt 0:09:06]} Kg8 {[%emt 0:00:33]} 24. Bg6 {[%emt 0:02:00]} N7b6 {[%emt 0:01:14]} 25. Re1 {[%emt 0:02:21]} Qg7 {[%emt 0:01:21]} 26. Qg5 {[%emt 0:03:11]} Ne7 {[%emt 0:01:44]} 27. Bd3 {[%emt 0:01:47]} Qxg5 {[%emt 0:03:25]} 28. Bxg5 {[%emt 0:00:05]} Nbd5 {[%emt 0:00:14]} 29. Bxe7 {[%emt 0:01:05]} Nxe7 {[%emt 0:00:05]} 30. Be4 {[%emt 0:02:47]} b4 {[%emt 0:01:11]} 31. Re3 {[%emt 0:06:45]} bxc3 {[%emt 0:01:46]} 32. Rd1 {[%emt 0:02:49]} Rad8 {[%emt 0:01:21]} 33. Rxc3 {[%emt 0:02:49]} Bxd4 {[%emt 0:00:21]} 34. Rg3+ {[%emt 0:04:16]} Kh8 {[%emt 0:00:30]} 35. Rd2 {[%emt 0:02:58]} Bxe5 {[%emt 0:01:36]} 36. Rxd8 {[%emt 0:01:11]} Rxd8 {[%emt 0:00:04]} 37. Rd3 {[%emt 0:02:53]} Rxd3 {[%emt 0:00:15]} 38. Bxd3 {[%emt 0:00:06]} c5 {[%emt 0:00:55]} 39. Kf1 {[%emt 0:01:24]} Kg7 {[%emt 0:00:10]} 40. Ke2 {[%emt 0:00:37]} Nd5 {[%emt 0:00:18]} 41. Bc4 {[%emt 0:30:40]} Nf4+ {[%emt 0:30:20]} 42. Kf3 {[%emt 0:01:02]} Kf6 {[%emt 0:00:07]} 43. h4 {[%emt 0:01:37]} Ng6 {[%emt 0:03:59]} 44. h5 {[%emt 0:01:53]} Nh4+ {[%emt 0:00:24]} 45. Ke4 {[%emt 0:00:45]} Bd4 {[%emt 0:03:50]} 46. g3 {[%emt 0:01:34]} Nf5 {[%emt 0:00:13]} 47. Kf3 {[%emt 0:03:17]} Nd6 {[%emt 0:00:47]} 48. Bd3 {[%emt 0:01:20]} Kg5 {[%emt 0:00:32]} 49. g4 {[%emt 0:00:39]} Nf7 {[%emt 0:00:08]} 50. Ke4 {[%emt 0:00:45]} Kxg4 {[%emt 0:00:33]} 51. Be2+ {[%emt 0:00:39]} Kg5 {[%emt 0:00:02]} 52. f4+ {[%emt 0:02:18]} Kh6 {[%emt 0:00:20]} 53. f5 {[%emt 0:00:42]} Kg5 {[%emt 0:00:09]} 54. Kd5 {[%emt 0:00:36]} Kxf5 {[%emt 0:00:11]} 55. Bd3+ {[%emt 0:01:06]} Kg5 {[%emt 0:00:15]} 56. Bg6 {[%emt 0:01:08]} Ne5 {[%emt 0:00:23]} 57. Be8 {[%emt 0:01:13]} Nd3 {[%emt 0:04:25]} 58. Kc4 {[%emt 0:00:56]} Nf4 {[%emt 0:00:57]} 59. Kb5 {[%emt 0:02:30]} Nxh5 {[%emt 0:00:05]} 60. Kxa5 {[%emt 0:01:39]} c4 {[%emt 0:01:14]} 61. Ba4 {[%emt 0:01:15]} Kf4 {[%emt 0:02:21]} 62. Kb4 {[%emt 0:00:19]} c3 {[%emt 0:00:07]} 63. Kc4 {[%emt 0:01:33]} Ke3 {[%emt 0:00:07]} 64. Bc2 {[%emt 0:00:39]} Kd2 {[%emt 0:02:01]} 65. Kb3 {[%emt 0:00:54]} Nf4 {[%emt 0:00:21]} 66. Bf5 {[%emt 0:02:08]} Nd3 {[%emt 0:00:22]} 67. Kc4 {[%emt 0:00:00]} c2 {[%emt 0:00:00]} 68. Kxd4 {[%emt 0:00:00]} c1=Q {[%emt 0:00:00]} 69. Bxd3 {[%emt 0:00:00]} Qc3+ {[%emt 0:00:00]} 70. Ke4 {[%emt 0:00:00]} Qxd3+ {[%emt 0:00:00]} 71. Ke5 {[%emt 0:00:00]} Qa3 {[%emt 0:00:00]} 72. Kd4 {[%emt 0:00:00]} Qxa2 {[%emt 0:00:00]} 73. Ke4 {[%emt 0:00:00]} Qa4+ {[%emt 0:00:00]} 74. Kd5 {[%emt 0:00:00]} Kd3 {[%emt 0:00:00]} 75. Kd6 {[%emt 0:00:00]} Ke4 {[%emt 0:00:00]} 76. Kc5 {[%emt 0:00:00]} Ke5 {[%emt 0:00:00]} 77. Kb6 {[%emt 0:00:00]} Kd5 {[%emt 0:00:00]} 78. Kb7 {[%emt 0:00:00]} Qc4 {[%emt 0:00:00]} 79. Kb6 {[%emt 0:00:00]} Qc5+ {[%emt 0:00:00]} 80. Ka6 {[%emt 0:00:00]} Kd6 {[%emt 0:00:00]} 81. Kb7 {[%emt 0:00:00]} Qb5+ {[%emt 0:00:00]} 82. Ka7 {[%emt 0:00:00]} Kc7 {[%emt 0:00:00]} 0-1

[Event "44th Chess Olympiad Women 2022"]
[Site "Chennai"]
[Date "2022.07.30"]
[Round "2.54"]
[White "Shaba, Linda Dalitso"]
[Black "Beekhy, Aamirah"]
[Result "1-0"]
[ECO "E08"]
[WhiteElo "1658"]
[BlackElo "1373"]
[Annotator "NA COMBH"]
[PlyCount "59"]
[EventDate "2022.07.29"]
[EventType "team-tourn"]
[EventCountry "IND"]
[SourceTitle "playchess.com"]
[Source "ChessBase"]
[SourceQuality "1"]
[WhiteTeam "Zimbabwe"]
[BlackTeam "Mauritius"]
[WhiteTeamCountry "ZIM"]
[BlackTeamCountry "MRI"]
[TimeControl "40/5400+30:1800+30"]

1. d4 {[%emt 0:00:05]} d5 {[%emt 0:00:06]} 2. Nf3 {[%emt 0:00:05]} Nf6 {[%emt 0:00:59]} 3. g3 {[%emt 0:00:08]} e6 {[%emt 0:02:11]} 4. Bg2 {[%emt 0:00:10]} Be7 {[%emt 0:01:06]} 5. O-O {[%emt 0:00:11]} O-O {[%emt 0:00:31]} 6. c4 {[%emt 0:00:09]} Nbd7 {[%emt 0:05:07]} 7. Qc2 {[%emt 0:01:38]} h6 {[%emt 0:05:19]} 8. Bf4 {[%emt 0:03:12]} b6 {[%emt 0:04:40]} 9. Nc3 {[%emt 0:08:49]} Bb7 {[%emt 0:04:23]} 10. Ne5 {[%emt 0:03:42]} c6 {[%emt 0:03:46]} 11. b3 {[%emt 0:16:45]} Rc8 {[%emt 0:01:22]} 12. Rfd1 {[%emt 0:04:29]} Re8 {[%emt 0:07:51]} 13. Bf3 {[%emt 0:06:05]} a5 {[%emt 0:04:05]} 14. Rac1 {[%emt 0:05:37]} Ba8 {[%emt 0:04:47]} 15. e4 {[%emt 0:02:25]} Rf8 {[%emt 0:11:46]} 16. Qe2 {[%emt 0:09:38]} Qe8 {[%emt 0:03:12]} 17. Re1 {[%emt 0:07:06]} Rd8 {[%emt 0:06:02]} 18. cxd5 {[%emt 0:04:04]} cxd5 {[%emt 0:03:22]} 19. exd5 {[%emt 0:02:32]} Ba3 {[%emt 0:10:11]} 20. Nxd7 {[%emt 0:04:25]} Rxd7 {[%emt 0:13:46]} 21. dxe6 {[%emt 0:06:14]} fxe6 {[%emt 0:03:26]} 22. Rcd1 {[%emt 0:07:43]} Bxf3 {[%emt 0:00:20]} 23. Qxf3 {[%emt 0:00:02]} Qf7 {[%emt 0:01:32]} 24. h4 {[%emt 0:04:14]} Bb4 {[%emt 0:00:36]} 25. Be5 {[%emt 0:02:17]} Qh5 {[%emt 0:01:45]} 26. Qxh5 {[%emt 0:00:38]} Nxh5 {[%emt 0:00:02]} 27. Re3 {[%emt 0:00:11]} Rdf7 {[%emt 0:00:57]} 28. Rf1 {[%emt 0:00:32]} Rf3 {[%emt 0:00:41]} 29. Nd1 {[%emt 0:00:48]} Nxg3 {[%emt 0:00:37]} 30. Bxg3 {[%emt 0:00:20]} 1-0

[Event "44th Chess Olympiad Women 2022"]
[Site "Chennai"]
[Date "2022.07.30"]
[Round "2.54"]
[White "Mudodo, Refiloe Hazel"]
[Black "Acham, Meritza"]
[Result "1-0"]
[ECO "B54"]
[WhiteElo "1604"]
[BlackElo "1397"]
[Annotator "NA RC COMBH"]
[PlyCount "35"]
[EventDate "2022.07.29"]
[EventType "team-tourn"]
[EventCountry "IND"]
[SourceTitle "playchess.com"]
[Source "ChessBase"]
[SourceQuality "1"]
[WhiteTeam "Zimbabwe"]
[BlackTeam "Mauritius"]
[WhiteTeamCountry "ZIM"]
[BlackTeamCountry "MRI"]
[TimeControl "40/5400+30:1800+30"]

1. e4 {[%emt 0:00:05]} c5 {[%emt 0:00:21]} 2. Nf3 {[%emt 0:00:29]} d6 {[%emt 0:00:09]} 3. d4 {[%emt 0:00:34]} cxd4 {[%emt 0:00:07]} 4. Nxd4 {[%emt 0:00:19]} Nf6 {[%emt 0:00:09]} 5. f3 {[%emt 0:01:03]} e6 {[%emt 0:00:13]} 6. c4 {[%emt 0:01:40]} Be7 {[%emt 0:00:22]} 7. Nc3 {[%emt 0:01:04]} O-O {[%emt 0:01:25]} 8. Be3 {[%emt 0:01:32]} a6 {[%emt 0:00:54]} 9. Be2 {[%emt 0:01:56]} Nc6 {[%emt 0:01:50]} 10. O-O {[%emt 0:03:16]} Qc7 {[%emt 0:01:32]} 11. Qd2 {[%emt 0:04:12]} Ne5 {[%emt 0:04:25]} 12. Rac1 {[%emt 0:05:26]} Nxc4 {[%emt 0:06:14]} 13. Bxc4 {[%emt 0:00:15]} Qxc4 {[%emt 0:05:25]} 14. Nd5 {[%emt 0:02:11]} Qxa2 {[%emt 0:10:12]} 15. Nxe7+ {[%emt 0:00:11]} Kh8 {[%emt 0:00:56]} 16. Nxc8 {[%emt 0:00:43]} Raxc8 {[%emt 0:00:45]} 17. Ra1 {[%emt 0:01:47]} Qc4 {[%emt 0:10:32]} 18. Rfc1 {[%emt 0:00:36]} 1-0